[Event "*** MasterClass Titled Tuesday Blitz"]
[Site "Chess.com"]
[Date "2017.10.03"]
[Round "7"]
[White "Diwi89"]
[Black "Kacparov"]
[Result "1/2-1/2"]
[WhiteElo "2539"]
[BlackElo "2609"]
[TimeControl "180+2"]
[EndTime "14:39:06 PDT"]
[Termination "Game drawn by repetition"]

1. e4 {[%clk 0:03:01.9]} 1... c5 {[%clk 0:02:53.9]} 2. Nf3 {[%clk 0:03:01.7]}
2... e6 {[%clk 0:02:53.7]} 3. c3 {[%clk 0:03:00.4]} 3... d5 {[%clk 0:02:51.6]}
4. e5 {[%clk 0:02:58.7]} 4... d4 {[%clk 0:02:51.8]} 5. Bd3 {[%clk 0:02:57.1]}
5... Nc6 {[%clk 0:02:52.8]} 6. O-O {[%clk 0:02:56.8]} 6... Nge7 {[%clk
0:02:53.3]} 7. Re1 {[%clk 0:02:56.7]} 7... Nd5 {[%clk 0:02:54.1]} 8. Be4 {[%clk
0:02:55.3]} 8... Be7 {[%clk 0:02:54.9]} 9. c4 {[%clk 0:02:55.5]} 9... Nb6 {[%clk
0:02:50.5]} 10. Bxc6+ {[%clk 0:02:54.6]} 10... bxc6 {[%clk 0:02:52.4]} 11. d3
{[%clk 0:02:55.5]} 11... a5 {[%clk 0:02:52.8]} 12. Nbd2 {[%clk 0:02:55.7]} 12...
a4 {[%clk 0:02:53.7]} 13. Ne4 {[%clk 0:02:56.8]} 13... h6 {[%clk 0:02:50]} 14.
Bf4 {[%clk 0:02:47.4]} 14... O-O {[%clk 0:02:33.3]} 15. Qd2 {[%clk 0:02:46.9]}
15... Kh7 {[%clk 0:02:33.9]} 16. h3 {[%clk 0:02:47.2]} 16... Ra7 {[%clk
0:02:29.9]} 17. Nh2 {[%clk 0:02:48.1]} 17... Rh8 {[%clk 0:02:20.4]} 18. Ng4
{[%clk 0:02:48.8]} 18... Nd7 {[%clk 0:02:14.6]} 19. Bg3 {[%clk 0:02:44.2]} 19...
Kg8 {[%clk 0:02:11.8]} 20. Qf4 {[%clk 0:02:43.9]} 20... Rb7 {[%clk 0:01:48.7]}
21. Re2 {[%clk 0:02:42.1]} 21... h5 {[%clk 0:01:39.1]} 22. Nh2 {[%clk
0:02:32.9]} 22... Nf8 {[%clk 0:01:39.7]} 23. Nf3 {[%clk 0:02:27]} 23... Ng6
{[%clk 0:01:34.6]} 24. Qd2 {[%clk 0:02:26.9]} 24... h4 {[%clk 0:01:35.5]} 25.
Bh2 {[%clk 0:02:26.8]} 25... Rh5 {[%clk 0:01:36.3]} 26. Nd6 {[%clk 0:02:23.5]}
26... Bxd6 {[%clk 0:01:35.5]} 27. exd6 {[%clk 0:02:25.4]} 27... f6 {[%clk
0:01:33.1]} 28. Qd1 {[%clk 0:02:21.1]} 28... Ra7 {[%clk 0:01:28.3]} 29. Nd2
{[%clk 0:02:20.9]} 29... e5 {[%clk 0:01:22.4]} 30. Ne4 {[%clk 0:02:21.5]} 30...
Ra5 {[%clk 0:01:17.7]} 31. Re1 {[%clk 0:02:07.3]} 31... Rh8 {[%clk 0:01:12.2]}
32. Qd2 {[%clk 0:02:04.2]} 32... Bf5 {[%clk 0:01:05.5]} 33. f4 {[%clk
0:01:52.9]} 33... Bxe4 {[%clk 0:00:51.9]} 34. Rxe4 {[%clk 0:01:50.8]} 34... Rh5
{[%clk 0:00:36.3]} 35. Qe2 {[%clk 0:01:47.7]} 35... Rh6 {[%clk 0:00:34.9]} 36.
fxe5 {[%clk 0:01:45.1]} 36... fxe5 {[%clk 0:00:35.6]} 37. Qd2 {[%clk 0:01:43]}
37... Ra7 {[%clk 0:00:31.4]} 38. Bxe5 {[%clk 0:01:43.1]} 38... Nxe5 {[%clk
0:00:32.5]} 39. Rxe5 {[%clk 0:01:45]} 39... Qxd6 {[%clk 0:00:33.6]} 40. Rae1
{[%clk 0:01:46.2]} 40... Rf7 {[%clk 0:00:33.3]} 41. Qg5 {[%clk 0:01:45.4]} 41...
Kh7 {[%clk 0:00:26.4]} 42. Rxc5 {[%clk 0:01:41]} 42... Qb8 {[%clk 0:00:26.4]}
43. Qd2 {[%clk 0:01:35]} 43... Qg3 {[%clk 0:00:27.1]} 44. Rg5 {[%clk 0:01:35.5]}
44... Qd6 {[%clk 0:00:24.9]} 45. Rg4 {[%clk 0:01:36.6]} 45... c5 {[%clk
0:00:24.4]} 46. Qg5 {[%clk 0:01:36.9]} 46... Qb6 {[%clk 0:00:21.2]} 47. Rxh4
{[%clk 0:01:36]} 47... Qxb2 {[%clk 0:00:22.1]} 48. Rxh6+ {[%clk 0:01:36.9]}
48... gxh6 {[%clk 0:00:23.2]} 49. Qh4 {[%clk 0:01:28.8]} 49... Qxa2 {[%clk
0:00:21.3]} 50. Qe4+ {[%clk 0:01:29.8]} 50... Kg7 {[%clk 0:00:21.4]} 51. Kh2
{[%clk 0:01:26.2]} 51... Qf2 {[%clk 0:00:21.4]} 52. Qe5+ {[%clk 0:01:27]} 52...
Kh7 {[%clk 0:00:21.1]} 53. Ra1 {[%clk 0:01:25.4]} 53... Qf4+ {[%clk 0:00:14.1]}
54. Qxf4 {[%clk 0:01:26.3]} 54... Rxf4 {[%clk 0:00:16]} 55. Rxa4 {[%clk
0:01:27.7]} 55... Rf2 {[%clk 0:00:16.8]} 56. Ra5 {[%clk 0:01:25.8]} 56... Rd2
{[%clk 0:00:18]} 57. Rxc5 {[%clk 0:01:27.3]} 57... Rxd3 {[%clk 0:00:19.3]} 58.
Rd5 {[%clk 0:01:28.8]} 58... Rd1 {[%clk 0:00:20.3]} 59. Kg3 {[%clk 0:01:29.5]}
59... d3 {[%clk 0:00:20.1]} 60. Kf3 {[%clk 0:01:29.5]} 60... d2 {[%clk
0:00:21.2]} 61. Ke3 {[%clk 0:01:27.8]} 61... Rc1 {[%clk 0:00:21.2]} 62. Rxd2
{[%clk 0:01:27.8]} 62... Rxc4 {[%clk 0:00:22]} 63. Rd6 {[%clk 0:01:28.2]} 63...
Kg7 {[%clk 0:00:22.2]} 64. Kf3 {[%clk 0:01:29.4]} 64... Ra4 {[%clk 0:00:23.3]}
65. g4 {[%clk 0:01:30.7]} 65... Rb4 {[%clk 0:00:24.2]} 66. Kg3 {[%clk
0:01:32.1]} 66... Ra4 {[%clk 0:00:25.3]} 67. Kh4 {[%clk 0:01:33.5]} 67... Ra5
{[%clk 0:00:26.4]} 68. Rd3 {[%clk 0:01:33.7]} 68... Rb5 {[%clk 0:00:27.5]} 69.
Kg3 {[%clk 0:01:34.8]} 69... Rc5 {[%clk 0:00:28.5]} 70. Rd6 {[%clk 0:01:35.8]}
70... Rb5 {[%clk 0:00:29.7]} 71. Kf4 {[%clk 0:01:37]} 71... Rc5 {[%clk
0:00:30.5]} 72. Re6 {[%clk 0:01:38.4]} 72... Rb5 {[%clk 0:00:31.6]} 73. h4
{[%clk 0:01:39.9]} 73... Ra5 {[%clk 0:00:32.6]} 74. Re5 {[%clk 0:01:41.3]} 74...
Ra4+ {[%clk 0:00:32.5]} 75. Kf5 {[%clk 0:01:42.7]} 75... Ra7 {[%clk 0:00:33.4]}
76. Re6 {[%clk 0:01:43.3]} 76... Rf7+ {[%clk 0:00:33.6]} 77. Ke5 {[%clk
0:01:44.7]} 77... Ra7 {[%clk 0:00:33.6]} 78. h5 {[%clk 0:01:45.8]} 78... Ra5+
{[%clk 0:00:33.5]} 79. Kf4 {[%clk 0:01:46.6]} 79... Ra4+ {[%clk 0:00:34.7]} 80.
Kf5 {[%clk 0:01:47.8]} 80... Ra5+ {[%clk 0:00:35.5]} 81. Re5 {[%clk 0:01:49.2]}
81... Ra7 {[%clk 0:00:36.3]} 82. Rd5 {[%clk 0:01:50.7]} 82... Rb7 {[%clk
0:00:36.9]} 83. Ke6 {[%clk 0:01:51.6]} 83... Rb6+ {[%clk 0:00:34.4]} 84. Ke5
{[%clk 0:01:51.6]} 84... Rb7 {[%clk 0:00:33.9]} 85. Rd6 {[%clk 0:01:52.9]} 85...
Ra7 {[%clk 0:00:34.2]} 86. Ke6 {[%clk 0:01:54.2]} 86... Ra4 {[%clk 0:00:24.5]}
87. Rd7+ {[%clk 0:01:53]} 87... Kg8 {[%clk 0:00:25.7]} 88. Kf5 {[%clk
0:01:54.2]} 88... Ra5+ {[%clk 0:00:23.2]} 89. Kf4 {[%clk 0:01:55.3]} 89... Rb5
{[%clk 0:00:23.2]} 90. Re7 {[%clk 0:01:55.9]} 90... Ra5 {[%clk 0:00:23.5]} 91.
Re5 {[%clk 0:01:57]} 91... Ra6 {[%clk 0:00:24]} 92. Kf5 {[%clk 0:01:57.9]} 92...
Kf7 {[%clk 0:00:23.8]} 93. Rd5 {[%clk 0:01:57.6]} 93... Rf6+ {[%clk 0:00:24.5]}
94. Ke5 {[%clk 0:01:58.7]} 94... Re6+ {[%clk 0:00:25.8]} 95. Kf4 {[%clk
0:02:00.1]} 95... Ra6 {[%clk 0:00:26.9]} 96. Rd7+ {[%clk 0:02:00.2]} 96... Kg8
{[%clk 0:00:25.4]} 97. Kf5 {[%clk 0:02:01.6]} 97... Ra5+ {[%clk 0:00:25.9]} 98.
Ke6 {[%clk 0:02:01.7]} 98... Ra4 {[%clk 0:00:24.3]} 99. Kf5 {[%clk 0:02:02.7]}
99... Ra5+ {[%clk 0:00:25]} 1/2-1/2

[Event "*** MasterClass Titled Tuesday Blitz"]
[Site "Chess.com"]
[Date "2017.10.03"]
[Round "7"]
[White "plouarzel"]
[Black "Bengalas"]
[Result "1/2-1/2"]
[WhiteElo "2476"]
[BlackElo "2525"]
[TimeControl "180+2"]
[EndTime "14:40:02 PDT"]
[Termination "Game drawn by stalemate"]

1. e4 {[%clk 0:03:00.5]} 1... c5 {[%clk 0:03:01.1]} 2. Nf3 {[%clk 0:02:53.5]}
2... d6 {[%clk 0:03:02]} 3. Bb5+ {[%clk 0:02:52.1]} 3... Bd7 {[%clk 0:03:01.9]}
4. Bxd7+ {[%clk 0:02:52.8]} 4... Qxd7 {[%clk 0:03:03.5]} 5. c4 {[%clk
0:02:53.9]} 5... Nc6 {[%clk 0:03:04.1]} 6. d4 {[%clk 0:02:54.7]} 6... cxd4
{[%clk 0:03:03.7]} 7. Nxd4 {[%clk 0:02:56.6]} 7... g6 {[%clk 0:02:59.5]} 8. b3
{[%clk 0:02:57.7]} 8... Bg7 {[%clk 0:03:00.5]} 9. Bb2 {[%clk 0:02:59.2]} 9...
Nf6 {[%clk 0:03:00.4]} 10. Nc3 {[%clk 0:03:00]} 10... O-O {[%clk 0:03:00.8]} 11.
O-O {[%clk 0:03:00.4]} 11... a6 {[%clk 0:02:58.8]} 12. Nxc6 {[%clk 0:02:59]}
12... bxc6 {[%clk 0:02:44.7]} 13. Qe2 {[%clk 0:02:53.2]} 13... Qe6 {[%clk
0:02:07.5]} 14. Rfe1 {[%clk 0:02:52.5]} 14... g5 {[%clk 0:01:56.4]} 15. Rad1
{[%clk 0:02:30.6]} 15... Nd7 {[%clk 0:01:54.7]} 16. Na4 {[%clk 0:02:03.4]} 16...
Bxb2 {[%clk 0:01:53.6]} 17. Nxb2 {[%clk 0:02:03.7]} 17... Ne5 {[%clk 0:01:51]}
18. Nd3 {[%clk 0:02:03.3]} 18... Nxd3 {[%clk 0:01:29]} 19. Qxd3 {[%clk
0:02:05.2]} 19... f6 {[%clk 0:01:27.7]} 20. Qc3 {[%clk 0:01:42.5]} 20... c5
{[%clk 0:01:24.9]} 21. Qg3 {[%clk 0:01:38.1]} 21... Kh8 {[%clk 0:01:23.4]} 22.
Qe3 {[%clk 0:01:23.5]} 22... a5 {[%clk 0:01:24.2]} 23. a4 {[%clk 0:01:22.7]}
23... Rab8 {[%clk 0:01:23.3]} 24. Rd3 {[%clk 0:01:24.2]} 24... Rb4 {[%clk
0:01:18.5]} 25. g3 {[%clk 0:01:20]} 25... Rg8 {[%clk 0:01:13]} 26. Kg2 {[%clk
0:01:19.1]} 26... Rg6 {[%clk 0:01:04]} 27. h3 {[%clk 0:01:14.5]} 27... Rb8
{[%clk 0:00:58.5]} 28. Qf3 {[%clk 0:01:13.2]} 28... Rbg8 {[%clk 0:00:55.7]} 29.
Qf5 {[%clk 0:01:13.1]} 29... Qc8 {[%clk 0:00:34.4]} 30. Qxc8 {[%clk 0:00:55.7]}
30... Rxc8 {[%clk 0:00:34.1]} 31. Kf3 {[%clk 0:00:56.1]} 31... Kg7 {[%clk
0:00:34.4]} 32. Kg4 {[%clk 0:00:48.4]} 32... h5+ {[%clk 0:00:27.7]} 33. Kf3
{[%clk 0:00:41.2]} 33... Kf7 {[%clk 0:00:25.7]} 34. Rh1 {[%clk 0:00:39.8]} 34...
Ke6 {[%clk 0:00:22.3]} 35. h4 {[%clk 0:00:38.7]} 35... Rb8 {[%clk 0:00:16.9]}
36. hxg5 {[%clk 0:00:38.6]} 36... Rxg5 {[%clk 0:00:18.1]} 37. Kf4 {[%clk
0:00:36.7]} 37... Re5 {[%clk 0:00:17]} 38. f3 {[%clk 0:00:32.9]} 38... Rg8
{[%clk 0:00:17]} 39. Rd5 {[%clk 0:00:30.2]} 39... Rb8 {[%clk 0:00:17.6]} 40. Rd3
{[%clk 0:00:28.2]} 40... Rg5 {[%clk 0:00:18.3]} 41. Rh3 {[%clk 0:00:27.1]} 41...
Rbg8 {[%clk 0:00:18.6]} 42. Rd5 {[%clk 0:00:26.1]} 42... Re5 {[%clk 0:00:16.6]}
43. Rxh5 {[%clk 0:00:24.3]} 43... Rb8 {[%clk 0:00:15.9]} 44. g4 {[%clk
0:00:13.8]} 44... Rxb3 {[%clk 0:00:15.6]} 45. g5 {[%clk 0:00:14.3]} 45... fxg5+
{[%clk 0:00:12.2]} 46. Kg4 {[%clk 0:00:15.4]} 46... Rb4 {[%clk 0:00:06.7]} 47.
Rh6+ {[%clk 0:00:12.8]} 47... Kd7 {[%clk 0:00:06.1]} 48. Rxe5 {[%clk 0:00:14.2]}
48... dxe5 {[%clk 0:00:07.3]} 49. Kxg5 {[%clk 0:00:14.8]} 49... Rxc4 {[%clk
0:00:07.7]} 50. Kf5 {[%clk 0:00:15.4]} 50... Rc3 {[%clk 0:00:07.5]} 51. Kxe5
{[%clk 0:00:15.1]} 51... Rxf3 {[%clk 0:00:08.2]} 52. Ra6 {[%clk 0:00:16.4]}
52... c4 {[%clk 0:00:06.4]} 53. Rxa5 {[%clk 0:00:15.4]} 53... c3 {[%clk
0:00:07.5]} 54. Kd4 {[%clk 0:00:15.2]} 54... e6 {[%clk 0:00:06.8]} 55. Rc5
{[%clk 0:00:15.4]} 55... Kd6 {[%clk 0:00:04.7]} 56. Rxc3 {[%clk 0:00:13.1]}
56... e5+ {[%clk 0:00:05.4]} 57. Kc4 {[%clk 0:00:14]} 57... Rf4 {[%clk
0:00:06.4]} 58. Rd3+ {[%clk 0:00:14.8]} 58... Kc6 {[%clk 0:00:07.2]} 59. Re3
{[%clk 0:00:14.2]} 59... Rf8 {[%clk 0:00:08.4]} 60. Rc3 {[%clk 0:00:14.1]} 60...
Rf4 {[%clk 0:00:08.5]} 61. Re3 {[%clk 0:00:12.9]} 61... Rf8 {[%clk 0:00:09.1]}
62. Rh3 {[%clk 0:00:13.3]} 62... Kb6 {[%clk 0:00:03.7]} 63. Kb4 {[%clk
0:00:10.6]} 63... Rf4 {[%clk 0:00:03.7]} 64. Re3 {[%clk 0:00:07.5]} 64... Rg4
{[%clk 0:00:03.9]} 65. Kc4 {[%clk 0:00:08.6]} 65... Kc6 {[%clk 0:00:03.7]} 66.
a5 {[%clk 0:00:08.7]} 66... Rg1 {[%clk 0:00:04.8]} 67. Rh3 {[%clk 0:00:07.1]}
67... Rc1+ {[%clk 0:00:05.3]} 68. Kb4 {[%clk 0:00:07.1]} 68... Rb1+ {[%clk
0:00:06.3]} 69. Kc4 {[%clk 0:00:04.4]} 69... Rc1+ {[%clk 0:00:07.2]} 70. Rc3
{[%clk 0:00:06]} 70... Re1 {[%clk 0:00:06.5]} 71. Kd3+ {[%clk 0:00:06.3]} 71...
Kb5 {[%clk 0:00:07.2]} 72. Rb3+ {[%clk 0:00:06]} 72... Kxa5 {[%clk 0:00:08.1]}
73. Rb8 {[%clk 0:00:06.6]} 73... Ka6 {[%clk 0:00:09]} 74. Re8 {[%clk 0:00:06.2]}
74... Kb6 {[%clk 0:00:10.1]} 75. Rxe5 {[%clk 0:00:07.7]} 75... Kc6 {[%clk
0:00:11.2]} 76. Rd5 {[%clk 0:00:09.2]} 76... Rd1+ {[%clk 0:00:10.3]} 77. Kc4
{[%clk 0:00:10.7]} 77... Rxd5 {[%clk 0:00:10.8]} 78. exd5+ {[%clk 0:00:12.6]}
78... Kd6 {[%clk 0:00:11.8]} 79. Kd4 {[%clk 0:00:14.5]} 79... Kd7 {[%clk
0:00:12.9]} 80. Ke5 {[%clk 0:00:15.9]} 80... Ke7 {[%clk 0:00:14]} 81. d6+ {[%clk
0:00:16.6]} 81... Kd7 {[%clk 0:00:15.1]} 82. Kd5 {[%clk 0:00:18]} 82... Kd8
{[%clk 0:00:16.2]} 83. Ke5 {[%clk 0:00:19.4]} 83... Kd7 {[%clk 0:00:15.1]} 84.
Kd5 {[%clk 0:00:21]} 84... Kd8 {[%clk 0:00:16.2]} 85. Kc6 {[%clk 0:00:22.9]}
85... Kc8 {[%clk 0:00:17.2]} 86. d7+ {[%clk 0:00:24.8]} 86... Kd8 {[%clk
0:00:18.2]} 87. Kd6 {[%clk 0:00:26.7]} 1/2-1/2

[Event "*** MasterClass Titled Tuesday Blitz"]
[Site "Chess.com"]
[Date "2017.10.03"]
[Round "7"]
[White "fidetrainerNET"]
[Black "saraswathii"]
[Result "1/2-1/2"]
[WhiteElo "2084"]
[BlackElo "2272"]
[TimeControl "180+2"]
[EndTime "14:40:44 PDT"]
[Termination "Game drawn - insufficient material"]

1. e4 {[%clk 0:03:01.9]} 1... c5 {[%clk 0:02:59.9]} 2. Nf3 {[%clk 0:03:03.4]}
2... e6 {[%clk 0:03:01]} 3. b3 {[%clk 0:03:00.7]} 3... d5 {[%clk 0:02:53.9]} 4.
e5 {[%clk 0:03:01.1]} 4... g6 {[%clk 0:02:52.8]} 5. Bb5+ {[%clk 0:03:01.7]} 5...
Bd7 {[%clk 0:02:52.9]} 6. a4 {[%clk 0:03:02.2]} 6... a6 {[%clk 0:02:50.7]} 7.
Be2 {[%clk 0:02:54.8]} 7... Bg7 {[%clk 0:02:50.9]} 8. c4 {[%clk 0:02:55.2]} 8...
d4 {[%clk 0:02:37.8]} 9. d3 {[%clk 0:02:54.9]} 9... Nc6 {[%clk 0:02:38.3]} 10.
Bf4 {[%clk 0:02:53.6]} 10... Qc7 {[%clk 0:02:38.8]} 11. O-O {[%clk 0:02:54.5]}
11... Nxe5 {[%clk 0:02:38.9]} 12. Kh1 {[%clk 0:02:55.5]} 12... Bc6 {[%clk
0:02:31.6]} 13. Re1 {[%clk 0:02:52.2]} 13... Ne7 {[%clk 0:02:29]} 14. Nbd2
{[%clk 0:02:51.2]} 14... f6 {[%clk 0:01:49.6]} 15. Bg3 {[%clk 0:02:40.3]} 15...
Nf5 {[%clk 0:01:42.9]} 16. Nxe5 {[%clk 0:02:40.6]} 16... Nxg3+ {[%clk
0:01:41.7]} 17. hxg3 {[%clk 0:02:38.3]} 17... fxe5 {[%clk 0:01:35.6]} 18. Bf3
{[%clk 0:02:34.6]} 18... O-O {[%clk 0:01:36.1]} 19. Bxc6 {[%clk 0:02:35]} 19...
Qxc6 {[%clk 0:01:34.6]} 20. f3 {[%clk 0:02:34.4]} 20... b5 {[%clk 0:01:26.4]}
21. Ne4 {[%clk 0:02:34.5]} 21... b4 {[%clk 0:01:16.2]} 22. Qd2 {[%clk
0:02:34.9]} 22... Rac8 {[%clk 0:01:09.6]} 23. Qg5 {[%clk 0:02:34.9]} 23... Rc7
{[%clk 0:01:05.6]} 24. Kg1 {[%clk 0:02:31.4]} 24... Rf5 {[%clk 0:01:00.3]} 25.
Qh4 {[%clk 0:02:30.4]} 25... Qd7 {[%clk 0:00:52.6]} 26. Kf2 {[%clk 0:02:29.7]}
26... g5 {[%clk 0:00:40.7]} 27. Qh5 {[%clk 0:02:27.4]} 27... h6 {[%clk
0:00:38.6]} 28. Rh1 {[%clk 0:02:26.2]} 28... Qf7 {[%clk 0:00:38.1]} 29. Qh3
{[%clk 0:02:23.5]} 29... Qg6 {[%clk 0:00:35.4]} 30. Ke2 {[%clk 0:02:24.2]} 30...
Rf8 {[%clk 0:00:33.6]} 31. g4 {[%clk 0:02:08.8]} 31... Rf4 {[%clk 0:00:33]} 32.
g3 {[%clk 0:02:08.8]} 32... Rf8 {[%clk 0:00:33.2]} 33. a5 {[%clk 0:02:06.3]}
33... Qf7 {[%clk 0:00:32.9]} 34. Rhf1 {[%clk 0:02:06.1]} 34... Qg6 {[%clk
0:00:33.5]} 35. Rf2 {[%clk 0:02:03.7]} 35... Rc6 {[%clk 0:00:33.4]} 36. Qf1
{[%clk 0:02:02.7]} 36... Rf7 {[%clk 0:00:33.6]} 37. Qb1 {[%clk 0:02:01.8]} 37...
Rc8 {[%clk 0:00:33.6]} 38. Qa2 {[%clk 0:02:02.7]} 38... h5 {[%clk 0:00:30.4]}
39. Qa4 {[%clk 0:01:55]} 39... Rcf8 {[%clk 0:00:24.6]} 40. Qc6 {[%clk
0:01:45.9]} 40... hxg4 {[%clk 0:00:24.6]} 41. fxg4 {[%clk 0:01:46.3]} 41...
Rxf2+ {[%clk 0:00:23]} 42. Nxf2 {[%clk 0:01:47.2]} 42... Rf7 {[%clk 0:00:19.9]}
43. Qe8+ {[%clk 0:01:45.5]} 43... Bf8 {[%clk 0:00:19.8]} 44. Qc6 {[%clk
0:01:38.6]} 44... Qf6 {[%clk 0:00:20]} 45. Ne4 {[%clk 0:01:34.6]} 45... Qf3+
{[%clk 0:00:20.3]} 46. Kd2 {[%clk 0:01:35.4]} 46... Qe3+ {[%clk 0:00:21.4]} 47.
Kc2 {[%clk 0:01:35.6]} 47... Rf3 {[%clk 0:00:21.9]} 48. Qxe6+ {[%clk 0:01:33.9]}
48... Kg7 {[%clk 0:00:20.2]} 49. Qxe5+ {[%clk 0:01:34.6]} 49... Kg8 {[%clk
0:00:21.2]} 50. Qxg5+ {[%clk 0:01:34.9]} 50... Qxg5 {[%clk 0:00:20.5]} 51. Nxg5
{[%clk 0:01:36.8]} 51... Rxg3 {[%clk 0:00:21.8]} 52. Ne6 {[%clk 0:01:35.2]}
52... Rxg4 {[%clk 0:00:20.7]} 53. Rf1 {[%clk 0:01:35.6]} 53... Bd6 {[%clk
0:00:20.1]} 54. Rf5 {[%clk 0:01:35.9]} 54... Rg2+ {[%clk 0:00:20.6]} 55. Kd1
{[%clk 0:01:35.6]} 55... Rb2 {[%clk 0:00:20.7]} 56. Nxc5 {[%clk 0:01:36.3]}
56... Bxc5 {[%clk 0:00:21.6]} 57. Rxc5 {[%clk 0:01:38.2]} 57... Rxb3 {[%clk
0:00:23.5]} 58. Kd2 {[%clk 0:01:34.3]} 58... Rb2+ {[%clk 0:00:23.2]} 59. Kc1
{[%clk 0:01:34.1]} 59... Ra2 {[%clk 0:00:23]} 60. Rc8+ {[%clk 0:01:33.1]} 60...
Kf7 {[%clk 0:00:23.1]} 61. Rc7+ {[%clk 0:01:34.2]} 61... Ke8 {[%clk 0:00:20.7]}
62. Rb7 {[%clk 0:01:28.7]} 62... Rxa5 {[%clk 0:00:20.2]} 63. Rxb4 {[%clk
0:01:30.1]} 63... Ra3 {[%clk 0:00:21.4]} 64. Kc2 {[%clk 0:01:29.9]} 64... Kd7
{[%clk 0:00:21.2]} 65. Rb6 {[%clk 0:01:28.4]} 65... a5 {[%clk 0:00:18.1]} 66.
Ra6 {[%clk 0:01:27.2]} 66... Rc3+ {[%clk 0:00:17.6]} 67. Kd2 {[%clk 0:01:27.5]}
67... Ra3 {[%clk 0:00:18.7]} 68. c5 {[%clk 0:01:28.5]} 68... Ra2+ {[%clk
0:00:17.2]} 69. Kc1 {[%clk 0:01:28.2]} 69... Kc7 {[%clk 0:00:17.9]} 70. Rd6
{[%clk 0:01:25.9]} 70... Ra4 {[%clk 0:00:16.6]} 71. Kc2 {[%clk 0:01:25.6]} 71...
Ra2+ {[%clk 0:00:14.8]} 72. Kb3 {[%clk 0:01:26.4]} 72... Ra1 {[%clk 0:00:14.1]}
73. Rxd4 {[%clk 0:01:25.9]} 73... Kc6 {[%clk 0:00:14.8]} 74. Rc4 {[%clk
0:01:25.1]} 74... Rd1 {[%clk 0:00:14.8]} 75. d4 {[%clk 0:01:25.4]} 75... Kd5
{[%clk 0:00:14.1]} 76. Kc2 {[%clk 0:01:26.2]} 76... Rh1 {[%clk 0:00:12.2]} 77.
Ra4 {[%clk 0:01:17.6]} 77... Rh2+ {[%clk 0:00:11.1]} 78. Kd1 {[%clk 0:01:16.7]}
78... Rh4 {[%clk 0:00:10.4]} 79. Kd2 {[%clk 0:01:15.8]} 79... Rh2+ {[%clk
0:00:10.4]} 80. Kc3 {[%clk 0:01:16.7]} 80... Rh3+ {[%clk 0:00:11]} 81. Kb2
{[%clk 0:01:17.5]} 81... Rh2+ {[%clk 0:00:11.7]} 82. Kb3 {[%clk 0:01:17.8]}
82... Rh3+ {[%clk 0:00:12.3]} 83. Ka2 {[%clk 0:01:18.2]} 83... Rh2+ {[%clk
0:00:13.2]} 84. Kb1 {[%clk 0:01:18.8]} 84... Rh1+ {[%clk 0:00:13.4]} 85. Kc2
{[%clk 0:01:20.2]} 85... Rh2+ {[%clk 0:00:14.2]} 86. Kd3 {[%clk 0:01:21.7]}
86... Rh3+ {[%clk 0:00:14.7]} 87. Ke2 {[%clk 0:01:23]} 87... Rh2+ {[%clk
0:00:15.2]} 88. Ke3 {[%clk 0:01:23.9]} 88... Rh3+ {[%clk 0:00:16]} 89. Kf4
{[%clk 0:01:24.6]} 89... Rd3 {[%clk 0:00:16.6]} 90. Kf5 {[%clk 0:01:22.7]} 90...
Rf3+ {[%clk 0:00:16.8]} 91. Kg6 {[%clk 0:01:22.8]} 91... Rf4 {[%clk 0:00:16.9]}
92. Kg7 {[%clk 0:01:22.4]} 92... Rf1 {[%clk 0:00:16.9]} 93. Kg8 {[%clk
0:01:19.2]} 93... Rd1 {[%clk 0:00:16.8]} 94. Kf8 {[%clk 0:01:19.5]} 94... Re1
{[%clk 0:00:17.4]} 95. Kf7 {[%clk 0:01:20.1]} 95... Re4 {[%clk 0:00:18]} 96. Kf6
{[%clk 0:01:20.4]} 96... Re1 {[%clk 0:00:18.2]} 97. Rxa5 {[%clk 0:01:18.7]}
97... Kxd4 {[%clk 0:00:18.1]} 98. c6 {[%clk 0:01:15.4]} 98... Rc1 {[%clk
0:00:18.6]} 99. Ra6 {[%clk 0:01:14.7]} 99... Kd5 {[%clk 0:00:19]} 100. Ke7
{[%clk 0:01:14.3]} 100... Rxc6 {[%clk 0:00:19.2]} 101. Rxc6 {[%clk 0:01:14.8]}
101... Kxc6 {[%clk 0:00:21.1]} 1/2-1/2